bitfinex/quotes_BTCUSD_20250515
["timestamp","ask_amount","ask_price","bid_price","bid_amount"]
[1747324963461,0.53161624,103230.0,103220.0,0.66426]
[1747324964195,0.53161624,103230.0,103220.0,0.86770893]
[1747324964608,0.53161624,103230.0,103220.0,0.67394804]
[1747324964813,0.54130334,103230.0,103220.0,0.86770893]
[1747324965037,0.55099016,103230.0,103220.0,0.86770893]
[1747324965248,0.55099016,103230.0,103220.0,0.87739678]
[1747324966217,0.54130334,103230.0,103220.0,0.87739678]
[1747324966701,0.19374212,103230.0,103220.0,0.64276]
[1747324966813,0.53161624,103230.0,103220.0,0.84620893]
[1747324967018,0.53161624,103230.0,103220.0,0.88828473]
[1747324967225,0.53161624,103230.0,103220.0,0.64276]
[1747324968145,1.23099036,103230.0,103220.0,0.64276]
[1747324968316,1.47605036,103230.0,103220.0,0.64276]
[1747324968520,1.45495036,103230.0,103220.0,0.64276]
[1747324968780,1.11707624,103230.0,103220.0,0.64276]
[1747324968977,0.89099016,103230.0,103220.0,0.66486]
[1747324969129,0.88130334,103230.0,103220.0,0.64276]
[1747324969861,0.90280334,103230.0,103220.0,0.64276]
[1747324970624,1.24067746,103230.0,103220.0,0.64276]
[1747324971349,1.26187746,103230.0,103220.0,0.64276]
[1747324971852,1.24067746,103230.0,103220.0,0.64276]
[1747324972053,0.90280334,103230.0,103220.0,0.64276]
[1747324972314,0.56492922,103230.0,103220.0,0.64276]
[1747324972563,0.90280334,103230.0,103220.0,0.64276]
[1747324975461,0.34968541,103240.0,103230.0,0.24875604]
[1747324975718,0.36905708,103240.0,103230.0,0.37705235]
[1747324975933,0.41757743,103250.0,103240.0,0.23459503]
[1747324975934,0.22279264,103250.0,103240.0,0.23459503]
[1747324976157,0.02905521,103250.0,103240.0,0.25396614]
[1747324976356,0.0096841,103260.0,103250.0,0.24911525]
[1747324976473,0.44657824,103260.0,103250.0,0.57070465]
[1747324976680,0.24320773,103260.0,103250.0,0.58038922]
[1747324976907,0.26257508,103260.0,103250.0,0.58038922]
[1747324977584,0.26257508,103260.0,103250.0,0.58053292]
[1747324978567,0.03873508,103260.0,103250.0,0.58053292]
[1747324978784,0.04841927,103260.0,103250.0,0.58053292]
[1747324978984,0.24210511,103260.0,103250.0,0.58053292]
[1747324979180,0.24210596,103260.0,103250.0,0.58053292]
[1747324979396,0.00968363,103260.0,103250.0,0.58053292]
[1747324979591,0.01936754,103260.0,103250.0,0.58053292]
[1747324979866,0.01936745,103260.0,103250.0,0.58053292]
[1747324980221,0.00968344,103260.0,103250.0,0.60363235]
[1747324980424,0.02905061,103260.0,103250.0,0.60363235]
[1747324980639,0.03873452,103260.0,103250.0,0.60363235]
[1747324980863,0.02905061,103260.0,103250.0,0.60363235]
[1747324981069,0.34,103270.0,103260.0,0.24373796]
[1747324981274,0.36904817,103270.0,103260.0,0.38817184]
[1747324981474,0.3593652,103270.0,103260.0,0.38817184]
[1747324981697,0.37873133,103270.0,103260.0,0.38817184]
[1747324981899,0.57239841,103270.0,103260.0,0.37848821]
[1747324982109,0.91027253,103270.0,103260.0,0.3555883]
[1747324982467,0.71860545,103270.0,103260.0,0.37495575]
[1747324982681,0.72828871,103270.0,103260.0,0.37495575]
[1747324982892,0.92195663,103270.0,103260.0,0.34590439]
[1747324983069,0.91227394,103270.0,103260.0,0.3555883]
[1747324983328,0.002,103270.0,103260.0,0.88451805]
[1747324983771,0.002,103270.0,103260.0,0.80657193]
[1747324983992,0.22913657,103270.0,103260.0,0.13285025]
[1747324984191,0.55290724,103270.0,103260.0,0.34590438]
[1747324984404,0.5625905,103270.0,103260.0,0.57926839]
[1747324984627,0.5625905,103270.0,103260.0,0.58226829]
[1747324984841,0.5625905,103270.0,103260.0,0.59195211]
[1747324985042,0.57227385,103270.0,103260.0,0.59195211]
[1747324985244,0.37860677,103270.0,103260.0,0.59195211]
[1747324985451,0.56059097,103270.0,103260.0,0.57258438]
[1747324985653,0.56059097,103270.0,103260.0,0.59195211]
[1747324985882,0.56059097,103270.0,103260.0,0.58526829]
[1747324986098,0.56059097,103270.0,103260.0,0.59495211]
[1747324986935,0.56059097,103270.0,103260.0,0.006]
[1747324986936,1.24418193,103270.0,103260.0,0.006]
[1747324987146,1.35649133,103270.0,103260.0,0.006]
[1747324987338,1.25918193,103270.0,103260.0,0.006]
[1747324987969,1.25918193,103270.0,103260.0,0.003]
[1747324988329,0.57376994,103260.0,103250.0,0.0001437]
[1747324988536,0.55309503,103240.0,103230.0,0.22368]
[1747324988740,1.24424327,103240.0,103230.0,0.22368]
[1747324988911,0.89096915,103240.0,103230.0,0.23888]
[1747324989796,0.89096915,103240.0,103230.0,0.24488]
[1747324991506,0.89096915,103240.0,103230.0,0.22968]
[1747324991923,0.89096915,103240.0,103230.0,0.24488]
[1747324992543,0.89096915,103240.0,103230.0,0.22968]
[1747324992750,0.90636915,103240.0,103230.0,0.22968]
[1747324993258,0.89096915,103240.0,103230.0,0.24488]
[1747324993739,0.89096915,103240.0,103230.0,0.43862212]
[1747324993953,0.89096915,103240.0,103230.0,0.59583235]
[1747324993954,0.57308541,103240.0,103230.0,0.59583235]
[1747324994170,0.35937101,103240.0,103230.0,0.59583235]
[1747324994391,0.5806441,103250.0,103240.0,0.23732158]
[1747324994620,0.25753429,103260.0,103250.0,0.24281534]
[1747324994621,0.58000841,103260.0,103250.0,0.24281534]
[1747324994838,0.43650259,103260.0,103250.0,0.3498095]
[1747324995046,0.24281618,103260.0,103250.0,0.37509407]
[1747324995254,0.03878344,103260.0,103250.0,0.37509407]
[1747324995673,0.35941561,103260.0,103250.0,0.37509407]
[1747324995885,0.36909952,103260.0,103250.0,0.37509407]
[1747324996090,0.02909952,103260.0,103250.0,0.37509407]
[1747324996308,0.03878362,103260.0,103250.0,0.37509407]
[1747324996512,0.36041561,103260.0,103250.0,0.37509407]
[1747324996685,0.37009962,103260.0,103250.0,0.37509407]
[1747324996920,0.37978372,103260.0,103250.0,0.37509407]
[1747324997137,0.37978372,103260.0,103250.0,0.37609407]
[1747324997580,0.37978362,103260.0,103250.0,0.37609407]
[1747324998215,4.845e-05,103260.0,103250.0,0.37609407]
[1747324998700,0.00973189,103260.0,103250.0,0.37609407]
[1747324998908,0.21310145,103260.0,103250.0,0.3664095]
[1747324999107,0.88885083,103260.0,103250.0,0.1135094]
[1747324999313,1.22885083,103260.0,103250.0,0.0983094]
[1747324999493,0.89097671,103260.0,103250.0,0.3219894]
[1747324999801,0.89097671,103260.0,103250.0,0.515694]
[1747325000011,0.89097671,103260.0,103250.0,0.3219894]
[1747325002417,1.22885083,103260.0,103250.0,0.22468]
[1747325002589,1.24525083,103260.0,103250.0,0.22468]
[1747325002813,1.40844191,103260.0,103250.0,0.22468]
[1747325003018,1.40844191,103260.0,103250.0,0.001]
[1747325003216,1.63160191,103260.0,103250.0,0.001]
[1747325004021,1.24525083,103260.0,103250.0,0.001]
[1747325004230,1.46841083,103260.0,103250.0,0.001]
[1747325004434,0.02905737,103240.0,103230.0,0.47642135]
[1747325004718,0.3669314,103240.0,103230.0,0.57373075]
[1747325004918,0.02905728,103240.0,103230.0,0.57373075]
[1747325005335,0.03874335,103240.0,103230.0,0.57373075]
[1747325005714,0.03874335,103240.0,103230.0,0.57573075]
[1747325005920,0.23246671,103240.0,103230.0,0.5660444]
[1747325006129,0.56065532,103240.0,103230.0,0.55635777]
[1747325006340,0.55096953,103240.0,103230.0,0.59593025]
[1747325006761,0.55096953,103240.0,103230.0,0.79935947]
[1747325007386,0.55096953,103240.0,103230.0,0.60561735]
[1747325007628,0.55096953,103240.0,103230.0,0.46868]
[1747325010107,0.90596953,103240.0,103230.0,0.46868]
[1747325010892,1.24384365,103240.0,103230.0,0.46868]
[1747325011108,1.25894365,103240.0,103230.0,0.22868]
[1747325011319,1.26858405,103240.0,103230.0,0.22868]
[1747325011756,0.93070993,103240.0,103230.0,0.22868]
[1747325013582,1.26858405,103240.0,103230.0,0.22868]
[1747325013815,1.36589345,103240.0,103230.0,0.22868]
[1747325016441,1.36589345,103240.0,103230.0,0.005]
[1747325016877,1.46320285,103240.0,103230.0,0.005]
[1747325017711,1.46320285,103240.0,103230.0,0.003]
[1747325018071,0.21313631,103220.0,103210.0,0.239]
[1747325018292,1.11381043,103220.0,103210.0,0.239]
[1747325018516,1.11381043,103220.0,103210.0,0.223]
[1747325019277,1.11381043,103220.0,103210.0,0.2231437]
[1747325019500,1.11381043,103220.0,103210.0,0.2415437]
[1747325020398,1.11381043,103220.0,103210.0,0.2435837]
[1747325021418,1.12832322,103220.0,103210.0,0.2435837]
[1747325021631,1.14472322,103220.0,103210.0,0.2281837]
[1747325022246,1.14472322,103220.0,103210.0,0.0051437]
[1747325023283,0.92192322,103220.0,103210.0,0.0051437]
[1747325023483,1.14460322,103220.0,103210.0,0.0051437]
[1747325023701,0.92192322,103220.0,103210.0,0.0051437]
[1747325023921,0.5676491,103220.0,103210.0,0.0215437]
[1747325024133,1.12820322,103220.0,103210.0,0.0215437]
[1747325024755,0.90552322,103220.0,103210.0,0.0215437]
[1747325024961,1.12816322,103220.0,103210.0,0.0215437]
[1747325026653,1.12816322,103220.0,103210.0,0.2445837]
[1747325028191,1.14476322,103220.0,103210.0,0.2281837]
[1747325028370,1.14476322,103220.0,103210.0,0.0051437]
[1747325031868,1.16066322,103220.0,103210.0,0.0051437]
[1747325032068,1.24207262,103220.0,103210.0,0.0051437]
[1747325032275,1.25797262,103220.0,103210.0,0.0051437]
[1747325033155,1.25797262,103220.0,103210.0,0.0031437]
[1747325033580,1.24207262,103220.0,103210.0,0.0031437]
[1747325035202,1.24207262,103220.0,103210.0,0.0001437]
[1747325035659,1.24207262,103220.0,103210.0,0.0011437]
[1747325037833,0.03388821,103220.0,103210.0,0.0165437]
[1747325037983,0.21313669,103220.0,103210.0,0.14489395]
[1747325038385,0.55313669,103220.0,103210.0,0.14489395]
[1747325038611,0.76568884,103220.0,103210.0,0.3483626]
[1747325038796,0.76568884,103220.0,103210.0,0.35805148]
[1747325039489,1.10356296,103220.0,103210.0,0.35805148]
[1747325039668,0.88132296,103220.0,103210.0,0.35805148]
[1747325039885,1.10352296,103220.0,103210.0,0.35805148]
[1747325040303,1.10352296,103220.0,103210.0,0.14489395]
[1747325040652,0.76564884,103220.0,103210.0,0.32217362]
[1747325040774,1.11321062,103220.0,103210.0,0.3667399]
[1747325040976,1.11321062,103220.0,103210.0,0.15358293]
[1747325041232,1.11321062,103220.0,103210.0,0.3473626]
[1747325041446,1.11321062,103220.0,103210.0,0.0165437]
[1747325041575,1.10352296,103220.0,103210.0,0.2386637]
[1747325042842,1.10352296,103220.0,103210.0,0.23857496]
[1747325043744,1.10352296,103220.0,103210.0,0.22317496]
[1747325043947,1.11962296,103220.0,103210.0,0.22317496]
[1747325044978,1.11962296,103220.0,103210.0,0.00105496]
[1747325045341,1.11962296,103220.0,103210.0,0.22317496]
[1747325045984,1.55480648,103220.0,103210.0,0.00105496]
[1747325046201,1.71701588,103220.0,103210.0,0.00105496]
[1747325046409,1.37914176,103220.0,103210.0,0.00105496]
[1747325047164,1.33074176,103220.0,103210.0,0.00105496]
[1747325048646,1.31424176,103220.0,103210.0,0.00105496]
[1747325048860,1.10324296,103220.0,103210.0,0.01695496]
[1747325049069,0.88132296,103220.0,103210.0,0.01695496]
[1747325049279,1.10320296,103220.0,103210.0,0.01695496]
[1747325050709,1.10320296,103220.0,103210.0,0.00105496]
[1747325050910,1.11860296,103220.0,103210.0,0.00105496]
[1747325051114,1.21591236,103220.0,103210.0,0.00105496]
[1747325058591,1.31322176,103220.0,103210.0,0.00105496]
[1747325059870,1.21591236,103220.0,103210.0,0.00105496]
[1747325060916,0.99403236,103220.0,103210.0,0.00105496]
[1747325061129,1.21555236,103220.0,103210.0,0.00105496]
[1747325065925,0.54344884,103220.0,103210.0,0.01635496]
[1747325066138,1.10264296,103220.0,103210.0,0.03235496]
[1747325067147,1.10260296,103220.0,103210.0,0.03235496]
[1747325067570,0.88132296,103220.0,103210.0,0.03235496]
[1747325067770,1.10260296,103220.0,103210.0,0.12966436]
[1747325068172,1.10256296,103220.0,103210.0,0.12966436]
[1747325068408,0.88132296,103220.0,103210.0,0.12966436]
[1747325068562,0.5531365,103220.0,103210.0,0.34767386]
[1747325068767,0.4440636,103220.0,103210.0,0.36845116]
[1747325069005,0.77225081,103220.0,103210.0,0.34907386]
[1747325069216,0.77225081,103220.0,103210.0,0.35876265]
[1747325069431,0.77225081,103220.0,103210.0,0.36845135]
[1747325069718,0.77225081,103220.0,103210.0,0.35876274]
[1747325070114,0.55101081,103220.0,103210.0,0.36845153]
[1747325070331,0.77221081,103220.0,103210.0,0.36845153]
[1747325070500,0.77221081,103220.0,103210.0,0.37814023]
[1747325071123,0.76252296,103220.0,103210.0,0.35876274]
[1747325071525,0.24057561,103220.0,103210.0,0.36845153]
[1747325071725,0.4343365,103220.0,103210.0,0.38782845]
[1747325071926,0.01937504,103220.0,103210.0,0.38782845]
[1747325072125,0.20859493,103230.0,103210.0,0.38782845]
[1747325072126,0.22796885,103230.0,103220.0,0.24878959]
[1747325072348,0.56796885,103230.0,103220.0,0.55749114]
[1747325072554,0.90584297,103230.0,103220.0,0.56717918]
[1747325072982,0.90584297,103230.0,103220.0,0.57686713]
[1747325073777,0.90684297,103230.0,103220.0,0.57686713]
[1747325074422,0.90684297,103230.0,103220.0,0.36373025]
[1747325074623,1.23503027,103230.0,103220.0,0.0308]
[1747325074823,1.23503027,103230.0,103220.0,0.25188]
[1747325075220,1.23503027,103230.0,103220.0,0.23638]
[1747325082809,0.89715615,103230.0,103220.0,0.25268]
[1747325083769,0.88232039,103230.0,103220.0,0.25268]
[1747325083974,1.10300039,103230.0,103220.0,0.25268]
[1747325085186,1.10300039,103230.0,103220.0,0.23638]
[1747325085493,1.10300039,103230.0,103220.0,0.23738]
[1747325085928,1.51442934,103230.0,103220.0,0.23738]
[1747325086275,1.43987451,103230.0,103220.0,0.23738]
[1747325086569,1.48554123,103230.0,103220.0,0.001]
[1747325086773,1.46974123,103230.0,103220.0,0.001]
[1747325088753,1.46974123,103230.0,103220.0,0.0174]
[1747325089195,1.45454123,103230.0,103220.0,0.0174]
[1747325090099,1.47004123,103230.0,103220.0,0.0174]
[1747325096741,1.47004123,103230.0,103220.0,0.001]
[1747325098645,1.49912523,103230.0,103220.0,0.001]
[1747325099736,1.48306523,103230.0,103220.0,0.0173]
[1747325100368,1.49836523,103230.0,103220.0,0.0173]
[1747325100606,1.49836523,103230.0,103220.0,0.001]
[1747325103542,1.49836523,103230.0,103220.0,0.0175]
[1747325106555,1.26294523,103230.0,103220.0,0.0175]
[1747325106754,1.26294523,103230.0,103220.0,0.0336]
[1747325106755,0.55811299,103230.0,103220.0,0.0336]
[1747325106982,1.11586711,103230.0,103220.0,0.0336]
[1747325107178,0.88132039,103230.0,103220.0,0.0336]
[1747325107335,1.10116039,103230.0,103220.0,0.23704893]
[1747325107535,0.88132039,103230.0,103220.0,0.23704893]
[1747325107745,1.10116039,103230.0,103220.0,0.25642473]
[1747325107948,1.10116039,103230.0,103220.0,0.0336]
[1747325108134,1.10116039,103230.0,103220.0,0.23704893]
[1747325108531,1.10116039,103230.0,103220.0,0.04328804]
[1747325108732,1.09147329,103230.0,103220.0,0.22736089]
[1747325109074,1.09147329,103230.0,103220.0,0.0336]
[1747325109296,1.09147329,103230.0,103220.0,0.23704893]
[1747325109453,0.87163329,103230.0,103220.0,0.35858694]
[1747325109655,0.23913354,103230.0,103220.0,0.3682746]
[1747325109872,0.44256276,103230.0,103220.0,0.34889918]
[1747325110257,0.78043688,103230.0,103220.0,0.35858713]
[1747325110458,0.78043688,103230.0,103220.0,0.36827498]
[1747325110922,0.44256276,103230.0,103220.0,0.37796264]
[1747325111141,0.43287613,103230.0,103220.0,0.36827498]
[1747325111355,0.43287613,103230.0,103220.0,0.35858713]
[1747325111356,0.42318922,103230.0,103220.0,0.35858713]
[1747325111568,0.76106334,103230.0,103220.0,0.35858713]
[1747325111907,0.76106334,103230.0,103220.0,0.36827498]
[1747325113168,0.76106334,103230.0,103220.0,0.37796274]
[1747325113385,0.01937336,103230.0,103220.0,0.38615022]
[1747325113600,0.22280258,103230.0,103220.0,0.38615022]
[1747325113817,0.00968635,103230.0,103220.0,0.38614956]
[1747325114237,0.03874643,103230.0,103220.0,0.37646218]
[1747325114437,0.57036342,103230.0,103220.0,0.37646218]
[1747325114867,0.3669342,103230.0,103220.0,0.38514956]
[1747325115066,0.3669342,103230.0,103220.0,0.38714956]
[1747325115269,0.3669342,103230.0,103220.0,0.39014956]
[1747325115474,0.56067632,103230.0,103220.0,0.38046218]
[1747325115671,0.56067632,103230.0,103220.0,0.39014956]
[1747325115672,0.3669342,103230.0,103220.0,0.39014956]
[1747325115891,0.57036333,103230.0,103220.0,0.39014956]
[1747325117338,0.37662121,103230.0,103220.0,0.39014956]
[1747325118373,0.57036333,103230.0,103220.0,0.38046218]
[1747325118644,0.03874709,103230.0,103220.0,0.39014956]
[1747325119573,0.88886428,103230.0,103220.0,0.25606]
[1747325119794,0.56759016,103230.0,103220.0,0.0202]
[1747325120018,1.24546428,103230.0,103220.0,0.24016]
[1747325121257,1.24546428,103230.0,103220.0,0.0202]
[1747325121472,1.24546428,103230.0,103220.0,0.24016]
[1747325124130,1.24546428,103230.0,103220.0,0.0202]
[1747325124338,1.24546428,103230.0,103220.0,0.24016]
[1747325125094,1.24546428,103230.0,103220.0,0.0202]
[1747325125297,1.24546428,103230.0,103220.0,0.24016]
[1747325126877,0.89099016,103230.0,103220.0,0.24016]
[1747325127712,1.22886428,103230.0,103220.0,0.24016]
[1747325127876,0.89099016,103230.0,103220.0,0.24016]
[1747325128482,1.22886428,103230.0,103220.0,0.24016]
[1747325130435,0.89099016,103230.0,103220.0,0.24016]
[1747325131044,0.55311604,103230.0,103220.0,0.24016]
[1747325131264,0.55311604,103230.0,103220.0,0.25576]
[1747325131466,1.10991016,103230.0,103220.0,0.25576]
[1747325131886,0.89099016,103230.0,103220.0,0.54683029]
[1747325132088,0.00968663,103230.0,103220.0,0.60072142]
[1747325132308,0.23248902,103230.0,103220.0,0.59103413]
[1747325132857,0.01937298,103230.0,103220.0,0.59103413]
[1747325133061,0.02905989,103230.0,103220.0,0.59103413]
[1747325133515,0.19372277,103250.0,103240.0,0.21940952]
[1747325133741,0.75043689,103250.0,103240.0,0.22909559]
[1747325133946,1.09043689,103250.0,103240.0,0.016]
[1747325135758,1.09143689,103250.0,103240.0,0.016]
[1747325136157,0.87259689,103250.0,103240.0,0.016]
[1747325136432,1.09131689,103250.0,103240.0,0.016]
[1747325136634,1.09131689,103250.0,103240.0,0.21940952]
[1747325136881,1.09131689,103250.0,103240.0,0.016]
[1747325137821,0.19372336,103240.0,103230.0,0.2504697]
[1747325138005,0.53159748,103240.0,103230.0,0.3477791]
[1747325138207,0.55096952,103240.0,103230.0,0.35746611]
[1747325138427,0.56065503,103240.0,103230.0,0.35746611]
[1747325138835,0.55096952,103240.0,103230.0,0.35746611]
[1747325139384,0.55096952,103240.0,103230.0,0.35846611]
[1747325139688,0.54128364,103240.0,103230.0,0.35846629]
[1747325140329,0.54128364,103240.0,103230.0,0.36815311]
[1747325140764,0.54128364,103240.0,103230.0,0.14535025]
[1747325140993,0.87159748,103240.0,103230.0,0.0173]
[1747325141202,1.2258716,103240.0,103230.0,0.001]
[1747325141407,1.2258716,103240.0,103230.0,0.21976]
[1747325141819,0.88799748,103240.0,103230.0,0.21976]
[1747325142682,0.88799748,103240.0,103230.0,0.001]
[1747325142888,0.88799748,103240.0,103230.0,0.21976]
[1747325143755,1.323181,103240.0,103230.0,0.001]
[1747325143978,1.323181,103240.0,103210.0,5.496e-05]
[1747325143979,0.02528785,103220.0,103210.0,5.496e-05]
[1747325144204,0.84427131,103220.0,103210.0,5.496e-05]
[1747325144432,1.27703226,103220.0,103210.0,5.496e-05]
[1747325144942,1.64399538,103220.0,103210.0,5.496e-05]
[1747325145583,1.20881186,103220.0,103210.0,5.496e-05]
[1747325145798,1.19281186,103220.0,103210.0,5.496e-05]
[1747325146010,0.97441186,103220.0,103210.0,5.496e-05]
[1747325146241,1.19273186,103220.0,103210.0,5.496e-05]
[1747325146460,1.19473186,103220.0,103210.0,5.496e-05]
[1747325147530,1.30764126,103220.0,103210.0,5.496e-05]
[1747325147750,1.21033186,103220.0,103210.0,5.496e-05]
[1747325149612,1.30764126,103220.0,103210.0,5.496e-05]
[1747325151357,1.64551538,103220.0,103210.0,5.496e-05]
[1747325151564,1.22892586,103200.0,103190.0,0.23544]
[1747325151849,1.22892586,103200.0,103190.0,0.01678372]
[1747325151850,1.24532586,103200.0,103190.0,0.01678372]
[1747325152403,1.46344586,103200.0,103190.0,0.01678372]
[1747325152603,1.46344586,103200.0,103190.0,0.00018372]
[1747325152821,1.56075526,103200.0,103190.0,0.00018372]
[1747325153043,1.56075526,103200.0,103190.0,0.00218372]
[1747325153044,1.67466466,103200.0,103190.0,0.00218372]
[1747325153487,1.67466466,103200.0,103190.0,0.00418372]
[1747325153756,0.54354735,103170.0,103160.0,0.43382]
[1747325154002,1.43737559,103170.0,103160.0,0.42797359]
[1747325154228,1.43737559,103170.0,103160.0,0.42811755]
[1747325155134,1.45170014,103170.0,103160.0,0.42811755]
[1747325155331,1.45170014,103170.0,103160.0,0.20931755]
[1747325155536,1.46710014,103170.0,103160.0,0.19401755]
[1747325155752,1.11382602,103170.0,103160.0,0.21391755]
[1747325155976,1.45170014,103170.0,103160.0,0.02004396]
[1747325156230,1.43737559,103170.0,103160.0,0.00014396]
[1747325156476,1.55028497,103170.0,103160.0,0.00214396]
[1747325156694,1.55028497,103170.0,103160.0,0.00514396]
[1747325157370,1.64759437,103170.0,103160.0,0.00514396]
[1747325157706,0.97184613,103170.0,103160.0,0.00214396]
[1747325157910,1.64759437,103170.0,103160.0,0.00214396]
[1747325158118,1.56608499,103170.0,103160.0,0.00214396]
[1747325158554,1.56608499,103170.0,103160.0,0.00014396]
[1747325159029,1.34800499,103170.0,103160.0,0.00014396]
[1747325159280,1.55012499,103170.0,103160.0,0.00014396]
[1747325159508,1.33220499,103170.0,103160.0,0.00014396]
[1747325159743,1.64743439,103170.0,103160.0,0.00014396]
[1747325160591,1.66225699,103170.0,103160.0,0.00014396]
[1747325160812,0.88919935,103170.0,103160.0,0.00014396]
[1747325161016,1.56494759,103170.0,103160.0,0.00014396]
[1747325165503,1.24971819,103170.0,103160.0,0.00014396]
[1747325165630,1.46743819,103170.0,103160.0,0.00014396]
[1747325166527,1.45183819,103170.0,103160.0,0.01644396]
[1747325168063,1.23411819,103170.0,103160.0,0.01644396]
[1747325168260,1.45175819,103170.0,103160.0,0.01644396]
[1747325169387,1.45171819,103170.0,103160.0,0.01644396]
[1747325170029,1.11384407,103170.0,103160.0,0.21031755]
[1747325170269,1.09902147,103170.0,103160.0,0.03294396]
[1747325171031,0.75902147,103170.0,103160.0,0.22681755]
[1747325171289,1.08932892,103170.0,103160.0,0.03294396]
[1747325173554,1.42720304,103170.0,103160.0,0.03294396]
[1747325174012,1.08932892,103170.0,103160.0,0.03294396]
[1747325175008,1.08932892,103170.0,103160.0,0.22681755]
[1747325175218,0.20837744,103180.0,103170.0,0.00969264]
[1747325175431,0.76849325,103180.0,103170.0,0.4417748]
[1747325175638,1.10849325,103180.0,103170.0,0.4417748]
[1747325175854,0.55321913,103180.0,103170.0,0.4417748]
[1747325176062,0.74912404,103190.0,103180.0,0.22403601]
[1747325176276,0.2035079,103190.0,103180.0,0.23372762]
[1747325176500,0.02055765,103230.0,103210.0,0.0165]
[1747325176714,0.02055765,103230.0,103220.0,0.43766893]
[1747325176715,0.56492094,103230.0,103220.0,0.43766893]
[1747325176927,0.22704626,103230.0,103220.0,0.46673192]
[1747325177146,0.37174069,103240.0,103230.0,0.20954212]
[1747325177346,0.76832915,103240.0,103230.0,0.22891604]
[1747325177551,0.77797522,103240.0,103230.0,0.20954212]
[1747325177756,0.21309446,103240.0,103230.0,0.24445962]
[1747325177974,0.2227811,103240.0,103230.0,0.33208258]
[1747325178185,0.01937167,103240.0,103230.0,0.3417694]
[1747325178394,0.34755981,103240.0,103230.0,0.37568352]
[1747325178603,0.33787412,103250.0,103240.0,0.23918073]
[1747325178818,0.23664942,103250.0,103240.0,0.35103098]
[1747325179026,0.24633455,103250.0,103240.0,0.36693107]
[1747325179254,0.9338939,103250.0,103240.0,0.36693107]
[1747325179460,0.9338939,103250.0,103240.0,0.35724547]
[1747325179666,1.1275985,103250.0,103240.0,0.35724547]
[1747325180091,0.58420867,103250.0,103240.0,0.36693116]
[1747325180266,0.9338939,103250.0,103240.0,0.37661676]
[1747325180560,0.9103185,103250.0,103240.0,0.36693116]
[1747325180768,0.56275981,103250.0,103240.0,0.35724547]
[1747325180978,0.35936998,103250.0,103240.0,0.36693107]
[1747325181192,0.69724354,103250.0,103240.0,0.37661658]
[1747325181399,1.10821785,103260.0,103250.0,0.21948964]
[1747325181615,1.10821785,103260.0,103250.0,0.4274846]
[1747325181859,0.00968401,103260.0,103250.0,0.53447913]
[1747325182078,0.01936716,103260.0,103250.0,0.55364855]
[1747325182293,0.37873508,103260.0,103250.0,0.56894855]
[1747325182514,0.37873499,103260.0,103250.0,0.56894855]
[1747325182726,0.19373516,103280.0,103260.0,0.0159]
[1747325182969,0.00968176,103280.0,103270.0,0.23861629]
[1747325183188,0.55086936,103290.0,103280.0,0.21843074]
[1747325183412,0.77763083,103290.0,103280.0,0.45543528]
[1747325183643,0.77763083,103290.0,103280.0,0.47479945]
[1747325183851,0.76794992,103290.0,103280.0,0.44575306]
[1747325184081,0.76039461,103290.0,103280.0,0.43607074]
[1747325184298,1.09875381,103290.0,103280.0,0.23274]
[1747325184555,1.10275381,103290.0,103280.0,0.23274]
[1747325184761,1.10275381,103290.0,103280.0,0.43607074]
[1747325184971,0.76087969,103290.0,103280.0,0.43607074]
[1747325185180,1.10075381,103290.0,103280.0,0.24242241]
[1747325185603,1.09107234,103290.0,103280.0,0.23274]
[1747325185812,0.75419822,103290.0,103280.0,0.23274]
[1747325186030,1.09207234,103290.0,103280.0,0.23274]
[1747325186250,1.42994646,103290.0,103280.0,0.23274]
[1747325186461,1.42994646,103290.0,103280.0,0.21764]
[1747325186664,0.20333074,103280.0,103270.0,0.31665875]
[1747325186881,0.54120486,103280.0,103270.0,0.53425875]
[1747325187355,0.54120486,103280.0,103270.0,0.54394201]
[1747325187609,0.00968213,103280.0,103270.0,0.57299065]
[1747325187834,0.00968213,103280.0,103270.0,0.56330805]
[1747325187835,0.56056921,103280.0,103270.0,0.56330805]
[1747325188812,0.56056921,103280.0,103270.0,0.55362517]
[1747325189014,0.53152245,103280.0,103270.0,0.3308694]
[1747325189260,0.19364833,103280.0,103270.0,0.53421983]
[1747325189474,0.53152245,103280.0,103270.0,0.53421983]
[1747325189717,0.53152245,103280.0,103270.0,0.3308694]
[1747325190359,0.19364833,103280.0,103270.0,0.3308694]
[1747325190573,0.53152245,103280.0,103270.0,0.52453648]
[1747325191267,0.53152245,103280.0,103270.0,0.3308694]
[1747325192796,0.53152245,103280.0,103270.0,0.53421974]
[1747325193015,0.53152245,103280.0,103270.0,0.53421983]
[1747325193247,0.56056922,103280.0,103270.0,0.55358587]
[1747325193452,0.36692089,103280.0,103270.0,0.55358569]
[1747325193622,0.56056922,103280.0,103270.0,0.5439029]
[1747325193824,0.56056922,103280.0,103270.0,0.54390309]
[1747325193825,0.55088718,103280.0,103270.0,0.54390309]
[1747325194148,0.54120486,103280.0,103270.0,0.52453648]
[1747325194307,0.54120486,103280.0,103270.0,0.53421983]
[1747325194699,0.54120486,103280.0,103270.0,0.54390309]
[1747325194903,0.54120486,103280.0,103270.0,0.53421983]
[1747325195614,0.54120486,103280.0,103270.0,0.54390299]
[1747325196011,0.54120486,103280.0,103270.0,0.56326884]
[1747325196223,0.20333074,103280.0,103270.0,0.55358596]
[1747325196446,0.54120486,103280.0,103270.0,0.55358596]
[1747325196607,0.54120486,103280.0,103270.0,0.54390299]
[1747325197586,0.54120486,103280.0,103270.0,0.54390309]
[1747325197785,0.53152245,103280.0,103270.0,0.54390309]
[1747325198223,0.53152245,103280.0,103270.0,0.55358625]
[1747325198741,0.34755606,103280.0,103270.0,0.56326932]
[1747325198955,0.36691994,103280.0,103270.0,0.58895163]
[1747325199442,0.57025059,103280.0,103270.0,0.57926894]
[1747325199612,0.579933,103280.0,103270.0,0.58895182]
[1747325200203,0.57025134,103280.0,103270.0,0.5599029]
[1747325200408,0.55088718,103280.0,103270.0,0.52453648]
[1747325200799,0.54120486,103280.0,103270.0,0.52349648]
[1747325201224,0.54120486,103280.0,103270.0,0.53317983]
[1747325201899,0.54120486,103280.0,103270.0,0.55254616]
[1747325202335,0.5508869,103280.0,103270.0,0.54286309]
[1747325202536,0.56056875,103280.0,103270.0,0.55254625]
[1747325204961,0.56056875,103280.0,103270.0,0.56222932]
[1747325205141,0.37660189,103280.0,103270.0,0.57852894]
[1747325205327,0.38628421,103280.0,103270.0,0.58821173]
[1747325205551,0.57993338,103280.0,103270.0,0.58821182]
[1747325205771,0.57025153,103280.0,103270.0,0.57852894]
[1747325206382,0.5605694,103280.0,103270.0,0.56884597]
[1747325206604,0.5605694,103280.0,103270.0,0.55254597]
[1747325206958,0.5605694,103280.0,103270.0,0.56222894]
[1747325207773,0.5605694,103280.0,103270.0,0.54286281]
[1747325208978,0.55088718,103280.0,103270.0,0.53317974]
[1747325209160,0.55088718,103280.0,103270.0,0.54286281]